fUSD/lending_fUSD_20250820
["ID","MTS","AMOUNT","RATE_DAILY","PERIOD"]
[380367014,1755706240659,-200.0,0.00022,2]
[380367016,1755706240670,-3440.2106572,0.00022,2]
[380367018,1755706240682,-458.46930693,0.00022,7]
[380367021,1755706240693,-2545.53957219,0.00022,2]
[380367022,1755706240702,-168.0,0.00022023,2]
[380367025,1755706240712,-334.5472959,0.00022085,2]
[380367027,1755706240722,-287.61899177,0.00022085,2]
[380367029,1755706240731,-200.0,0.000221,7]
[380367031,1755706240741,-484.05654316,0.000221,2]
[380367033,1755706240751,-200.0,0.000221,2]
[380367035,1755706240760,-168.0,0.00022109,2]
[380367037,1755706240769,-235.23076442,0.0002211,2]
[380367039,1755706240778,-4641.0,0.00022152,2]
[380367041,1755706240787,-168.0,0.00022177,2]
[380367043,1755706240798,-168.0,0.00022182,2]
[380367045,1755706240807,-168.0,0.0002219,2]
[380367047,1755706240817,-168.0,0.00022199,2]
[380367049,1755706240827,-160.6,0.000222,2]
[380367051,1755706240836,-1000.0,0.000222,2]
[380367053,1755706240845,-170.87773668,0.00022229,2]
[380367055,1755706240854,-170.1,0.00022235,2]
[380367057,1755706240864,-6368.535591,0.00022245,4]
[380367059,1755706240873,-3187.91545714,0.00022245,4]
[380367061,1755706240883,-258.78978054,0.00022245,4]
[380367063,1755706240892,-270.0,0.0002231,2]
[380367065,1755706240901,-6368.535591,0.00022368,4]
[380367067,1755706240914,-3187.91545714,0.00022368,4]
[380367069,1755706240923,-258.78978054,0.00022368,4]
[380367071,1755706240933,-168.0,0.00022381,2]
[380367073,1755706240942,-168.0,0.00022451,2]
[380367075,1755706240951,-187.78006525,0.00022466,2]
[380367077,1755706240960,-168.0,0.00022488,2]
[380367079,1755706240970,-170.1,0.0002249,2]
[380367081,1755706240979,-6368.535591,0.0002249,4]
[380367083,1755706240988,-3187.91545714,0.0002249,4]
[380367085,1755706240997,-258.78978054,0.0002249,4]
[380367087,1755706241007,-170.1,0.00022498,2]
[380367128,1755706241373,-170.1,0.00022498,2]
[380367130,1755706241382,-170.1,0.00022498,2]
[380367132,1755706241392,-170.1,0.00022498,2]
[380367134,1755706241401,-2900.0,0.000225,15]
[380367136,1755706241413,-34734.54683373,0.000225,2]
[380367138,1755706241423,-2430.54,0.000225,2]
[380367140,1755706241433,-5512.0,0.000225,5]
[380367142,1755706241443,-2000.0,0.00022507,2]
[380367144,1755706241452,-500.0,0.00022507,2]
[380367146,1755706241462,-500.02230309,0.00022507,2]
[380367148,1755706241472,-557.18344091,0.00022507,2]
[380367150,1755706241482,-223677.97,0.00022508,2]
[380367152,1755706241493,-200.0,0.0002251,7]
[380367154,1755706241502,-170.1,0.00022511,2]
[380367156,1755706241512,-152.0,0.0002252,4]
[380367158,1755706241521,-1000.0,0.00022521,2]
[380367160,1755706241531,-1000.0,0.00022521,2]
[380367161,1755706241540,-1000.0,0.00022521,2]
[380367162,1755706241549,-4641.0,0.00022555,2]
[380367163,1755706241559,-168.0,0.00022563,2]
[380367164,1755706241568,-500.0,0.00022573,2]
[380367165,1755706241577,-500.0,0.00022573,2]
[380367166,1755706241587,-500.0,0.00022573,2]
[380367167,1755706241596,-500.0,0.00022573,2]
[380367168,1755706241607,-500.0,0.00022573,2]
[380367169,1755706241617,-500.0,0.00022573,2]
[380367170,1755706241627,-500.0,0.00022573,2]
[380367171,1755706241637,-160.03442829,0.00022573,2]
[380367172,1755706241648,-500.0,0.00022573,2]
[380367173,1755706241657,-500.0,0.00022573,2]
[380367174,1755706241668,-500.0,0.00022573,2]
[380367175,1755706241679,-500.0,0.00022573,2]
[380367176,1755706241689,-500.0,0.00022573,2]
[380367177,1755706241699,-500.0,0.00022573,2]
[380367178,1755706241709,-500.0,0.00022573,2]
[380367179,1755706241719,-500.0,0.00022573,2]
[380367180,1755706241729,-500.0,0.00022573,2]
[380367181,1755706241738,-500.0,0.00022573,2]
[380367182,1755706241747,-500.0,0.00022573,2]
[380367183,1755706241757,-500.0,0.00022573,2]
[380367184,1755706241766,-589.99825164,0.00022573,2]
[380367185,1755706241776,-500.0,0.00022573,2]
[380367186,1755706241785,-500.0,0.00022573,2]
[380367187,1755706241794,-500.0,0.00022573,2]
[380367188,1755706241803,-500.0,0.00022573,2]
[380367189,1755706241813,-500.0,0.00022573,2]
[380367190,1755706241822,-645.07709066,0.00022573,2]
[380367191,1755706241831,-500.0,0.00022573,2]
[380367192,1755706241841,-230.0,0.0002258,2]
[380367193,1755706241850,-500.0,0.00022603,2]
[380367194,1755706241859,-620.82,0.00022603,2]
[380367195,1755706241868,-6368.535591,0.00022613,4]
[380367196,1755706241877,-3187.91545714,0.00022613,4]
[380367197,1755706241887,-258.78978054,0.00022613,4]
[380367198,1755706241896,-167.72,0.0002265,2]
[380367199,1755706241906,-170.87773668,0.00022657,2]
[380367200,1755706241918,-170.1,0.00022689,2]
[380367201,1755706241927,-4641.0,0.00022691,2]
[380367202,1755706241936,-4641.0,0.00022695,2]
[380367203,1755706241946,-1700.65863417,0.00022699,2]
[380367204,1755706241956,-32723.50403904,0.00022699,7]
[380367205,1755706241967,-511.92076505,0.0002271,2]
[380367206,1755706241977,-6368.535591,0.00022736,4]
[380367207,1755706241987,-3187.91545714,0.00022736,4]
[380367208,1755706241997,-258.78978054,0.00022736,4]
[380367209,1755706242007,-196.38423222,0.00022743,2]
[380367210,1755706242019,-500.0,0.00022773,2]
[380367211,1755706242030,-639.74227414,0.00022773,2]
[380367212,1755706242040,-170.1,0.0002279,2]
[380367213,1755706242050,-170.1,0.0002279,2]
[380367214,1755706242060,-170.1,0.0002279,2]
[380367215,1755706242069,-139873.99,0.000228,7]
[380367216,1755706242079,-2000.0,0.00022821,2]
[380367217,1755706242089,-600.0,0.00022822,2]
[380367218,1755706242100,-173.37,0.00022836,2]
[380367219,1755706242110,-6368.535591,0.00022859,4]
[380367220,1755706242120,-3187.91545714,0.00022859,4]
[380367221,1755706242129,-258.78978054,0.00022859,4]
[380367222,1755706242139,-4641.0,0.0002288,2]
[380367223,1755706242148,-798.85,0.00022889,2]
[380367224,1755706242157,-468.62,0.00022889,2]
[380367225,1755706242167,-1241.21396182,0.000229,10]
[380367226,1755706242176,-200.0,0.0002291,7]
[380367227,1755706242186,-170.1,0.00022945,2]
[380367228,1755706242195,-4641.0,0.00022955,2]
[380367229,1755706242206,-300.0,0.0002297,2]
[380367230,1755706242215,-250.0,0.0002297,2]
[380367231,1755706242225,-6368.535591,0.00022982,4]
[380367232,1755706242235,-3187.91545714,0.00022982,4]
[380367233,1755706242245,-258.78978054,0.00022982,4]
[380367234,1755706242254,-252.43,0.00022985,2]
[380367235,1755706242264,-1000.0,0.00023,14]
[380367236,1755706242273,-430.42386762,0.00023,2]
[380367237,1755706242283,-620.09702151,0.00023,7]
[380367238,1755706242292,-261.80689554,0.00023,23]
[380367239,1755706242302,-5000.0,0.00023,2]
[380367240,1755706242312,-3600.0,0.00023,24]
[380367241,1755706242321,-165.0,0.00023,5]
[380367242,1755706242330,-1005.32,0.00023,7]
[380367243,1755706242340,-6388.1,0.00023,7]
[380367244,1755706242349,-160.0,0.00023,3]
[380367245,1755706242359,-394.0,0.00023,7]
[380367246,1755706242368,-450.0,0.00023,2]
[380367247,1755706242377,-161.0,0.00023,7]
[380367248,1755706242387,-194.72792766,0.00023014,2]
[380367249,1755706242396,-168.0,0.00023064,2]
[380367250,1755706242405,-1500.0,0.00023068,2]
[380367251,1755706242416,-1003.89816877,0.00023068,2]
[380367252,1755706242425,-170.87773668,0.00023086,2]
[380367253,1755706242434,-170.1,0.00023095,2]
[380367254,1755706242444,-900.0,0.00023096,2]
[380367255,1755706242454,-10352.22550874,0.00023097,2]
[380367256,1755706242463,-330.0,0.000231,7]
[380367257,1755706242473,-187.88439664,0.000231,2]
[380367258,1755706242482,-6368.535591,0.00023105,4]
[380367259,1755706242492,-3187.91545714,0.00023105,4]
[380367260,1755706242501,-258.78978054,0.00023105,4]
[380367261,1755706242511,-767.6147548,0.0002312,2]
[380367262,1755706242520,-500.0,0.00023121,2]
[380367263,1755706242529,-1000.0,0.00023121,2]
[380367264,1755706242539,-1000.0,0.00023121,2]
[380367265,1755706242548,-1000.0,0.00023121,2]
[380367266,1755706242557,-1000.0,0.00023121,2]
[380367267,1755706242567,-1000.0,0.00023121,2]
[380367268,1755706242577,-1000.0,0.00023121,2]
[380367269,1755706242586,-1000.0,0.00023121,2]
[380367270,1755706242597,-1000.0,0.00023121,2]
[380367271,1755706242608,-1000.0,0.00023121,2]
[380367272,1755706242618,-1000.0,0.00023121,2]
[380367273,1755706242627,-1000.0,0.00023121,2]
[380367274,1755706242637,-1000.0,0.00023121,2]
[380367275,1755706242647,-1000.0,0.00023121,2]
[380367276,1755706242656,-1000.0,0.00023121,2]
[380367277,1755706242666,-1000.0,0.00023121,2]
[380367278,1755706242678,-1000.0,0.00023121,2]
[380367279,1755706242688,-1000.0,0.00023121,2]
[380367280,1755706242697,-1000.0,0.00023121,2]
[380367281,1755706242708,-1000.0,0.00023121,2]
[380367282,1755706242717,-1000.0,0.00023121,2]
[380367283,1755706242727,-247.19820501,0.00023121,2]
[380367284,1755706242736,-1000.0,0.00023121,2]
[380367285,1755706242746,-1000.0,0.00023121,2]
[380367286,1755706242755,-1000.0,0.00023121,2]
[380367287,1755706242766,-170.1,0.0002319,2]
[380367288,1755706242776,-51051.96247207,0.000232,2]
[380367289,1755706242785,-300.0,0.00023207,2]
[380367290,1755706242795,-4641.0,0.00023209,2]
[380367291,1755706242805,-6368.535591,0.00023228,4]
[380367292,1755706242814,-3187.91545714,0.00023228,4]
[380367293,1755706242824,-258.78978054,0.00023228,4]
[380367294,1755706242833,-414.79057306,0.00023256,2]
[380367295,1755706242843,-170.1,0.00023278,2]
[380367296,1755706242853,-500.0,0.00023288,2]
[380367297,1755706242863,-394.0,0.00023288,7]
[380367298,1755706242872,-5888.0,0.00023288,2]
[380367299,1755706242882,-1000.0,0.00023321,2]
[380367300,1755706242892,-6368.535591,0.00023351,4]
[380367301,1755706242901,-3187.91545714,0.00023351,4]
[380367302,1755706242912,-258.78978054,0.00023351,4]
[380367303,1755706242922,-600.0,0.0002337,2]
[380367304,1755706242931,-171.2780031,0.0002337,2]
[380367305,1755706242941,-346.92554585,0.00023454,2]
[380367306,1755706242951,-298.26089446,0.00023454,2]
[380367307,1755706242961,-747.8093786,0.00023455,2]
[380367309,1755706242970,-6368.535591,0.00023474,4]
[380367311,1755706242979,-3187.91545714,0.00023474,4]
[380367312,1755706242988,-258.78978054,0.00023474,4]
[380367313,1755706242998,-4000.0,0.00023498,7]
[380367315,1755706243007,-200.0,0.000235,2]
[380367317,1755706243016,-1093.78,0.000235,14]
[380367318,1755706243026,-168.0,0.00023505,2]
[380367319,1755706243035,-170.87773668,0.00023514,2]
[380367320,1755706243044,-150.18421386,0.00023535,30]
[380367321,1755706243053,-170.1,0.00023552,2]
[380367322,1755706243062,-170.1,0.00023552,2]
[380367323,1755706243071,-170.1,0.00023552,2]
[380367324,1755706243080,-394.0,0.00023562,7]
[380367325,1755706243090,-134445.25,0.00023562,7]
[380367326,1755706243099,-201.93286099,0.00023562,2]
[380367327,1755706243109,-159.89798356,0.00023573,2]
[380367328,1755706243118,-1500.0,0.00023573,2]
[380367329,1755706243127,-170.1,0.0002359,2]
[380367330,1755706243137,-170.1,0.0002359,2]
[380367331,1755706243146,-170.1,0.0002359,2]
[380367332,1755706243155,-408.32,0.00023595,2]
[380367333,1755706243164,-347.17,0.00023595,2]
[380367334,1755706243174,-816.53,0.00023595,2]
[380367335,1755706243183,-347.22,0.00023595,2]
[380367336,1755706243192,-702.57,0.00023595,2]
[380367337,1755706243202,-175.79,0.00023595,2]
[380367338,1755706243212,-816.59,0.00023595,2]
[380367339,1755706243221,-6368.535591,0.00023597,4]
[380367340,1755706243230,-3187.91545714,0.00023597,4]
[380367341,1755706243240,-258.78978054,0.00023597,4]
[380367342,1755706243250,-139873.99,0.000236,7]
[380367343,1755706243259,-803.55957022,0.00023616,2]
[380367344,1755706243268,-1500.0,0.00023668,2]
[380367345,1755706243277,-176.9362405,0.00023668,2]
[380367346,1755706243287,-194.78554114,0.00023668,2]
[380367347,1755706243297,-164.53664295,0.00023668,2]
[380367348,1755706243306,-1500.0,0.00023668,2]
[380367349,1755706243316,-1500.0,0.00023668,2]
[380367350,1755706243326,-1500.0,0.00023668,2]
[380367351,1755706243335,-1500.0,0.00023668,2]
[380367352,1755706243346,-458.07447694,0.00023668,2]
[380367353,1755706243355,-1602.99012364,0.00023668,2]
[380367354,1755706243365,-1500.0,0.00023668,2]
[380367355,1755706243375,-1500.0,0.00023668,2]
[380367356,1755706243385,-1500.0,0.00023668,2]
[380367357,1755706243394,-1500.0,0.00023668,2]
[380367358,1755706243404,-1500.0,0.00023668,2]
[380367359,1755706243415,-1500.0,0.00023668,2]
[380367360,1755706243425,-1500.0,0.00023668,2]
[380367361,1755706243434,-1500.0,0.00023668,2]
[380367362,1755706243444,-1414.80833616,0.00023668,2]
[380367363,1755706243454,-1500.0,0.00023668,2]
[380367364,1755706243463,-1500.0,0.00023668,2]
[380367365,1755706243473,-1500.0,0.00023668,2]
[380367366,1755706243482,-590.64711466,0.00023668,2]
[380367367,1755706243494,-170.1,0.00023701,2]
[380367368,1755706243505,-572.72663632,0.00023711,2]
[380367369,1755706243515,-6368.535591,0.00023719,4]
[380367370,1755706243524,-3187.91545714,0.00023719,4]
[380367371,1755706243535,-258.78978054,0.00023719,4]
[380367372,1755706243544,-4641.0,0.00023723,2]
[380367373,1755706243554,-1000.0,0.00023726,2]
[380367374,1755706243563,-2699.05059074,0.00023747,12]
[380367375,1755706243572,-900.0,0.00023747,2]
[380367376,1755706243582,-9773.93976478,0.00023748,3]
[380367377,1755706243591,-1000.0,0.00023758,2]
[380367378,1755706243601,-225.0,0.0002377,2]
[380367379,1755706243614,-152.0,0.00023802,5]
[380367380,1755706243623,-394.0,0.00023836,7]
[380367381,1755706243632,-6368.535591,0.00023842,4]
[380367382,1755706243642,-3187.91545714,0.00023842,4]
[380367383,1755706243651,-258.78978054,0.00023842,4]
[380367384,1755706243660,-1500.0,0.00023868,2]
[380367385,1755706243672,-6388.1,0.000239,7]
[380367386,1755706243683,-315.92844432,0.000239,4]
[380367387,1755706243693,-200.0,0.0002391,7]
[380367389,1755706243703,-600.0,0.00023918,2]
[380367393,1755706243712,-170.87773668,0.00023943,2]
[380367395,1755706243722,-6368.535591,0.00023965,4]
[380367396,1755706243731,-3187.91545714,0.00023965,4]
[380367397,1755706243740,-258.78978054,0.00023965,4]
[380367398,1755706243749,-26059.29260148,0.00024,2]
[380367399,1755706243847,-826.32685313,0.00024,2]
[380367400,1755706243858,-699.72121019,0.00024,2]
[380367401,1755706243869,-1263.45825904,0.00024,2]
[380367402,1755706243881,-31737.37406268,0.00024,2]
[380367403,1755706243890,-998.28861079,0.00024,2]
[380367404,1755706243900,-10014.33732653,0.00024,14]
[380367405,1755706244014,-379.0889,0.00020671,2]
[380367406,1755706244024,-51.17679747,0.00024,14]
[380367407,1755706244033,-249.96792847,0.00024,2]
[380367408,1755706244043,-500.75490201,0.00024,2]
[380367409,1755706244052,-45438.4777208,0.00024,3]
[380367410,1755706244074,-1158.2,0.00024,3]
[380367420,1755706246041,-2342.29020008,0.00024,3]
[380367421,1755706246149,-4951.81284524,0.00024,3]
[380367422,1755706246161,-20138.58725807,0.00024,3]
[380367435,1755706247635,-1401.41736209,0.00024,3]
[380367443,1755706753471,150.32,9.503e-05,2]
[380367445,1755706891074,191.4,0.00027397,120]
[380367551,1755707432181,-159.1284671,0.000109,2]
[380367552,1755707432191,-415.34438199,0.000109,2]
[380367553,1755707432201,-164.58764114,0.000109,2]
[380367554,1755707432211,-400.0,0.000109,2]
[380367555,1755707432220,-427.1439795,0.000109,2]
[380367556,1755707432229,-207.41074992,0.000109,2]
[380367557,1755707432239,-250.0,0.00010936,2]
[380367558,1755707432248,-300.0,0.00010936,2]
[380367559,1755707432258,-300.0,0.00010972,2]
[380367560,1755707432267,-300.0,0.00010972,2]
[380367561,1755707432276,-651.95678035,0.00010972,2]
[380367562,1755707432292,-548.04321965,0.00010972,2]
[380367563,1755707432302,-150.0,0.00010972,2]
[380367564,1755707432312,-173.16619126,0.00010973,2]
[380367565,1755707432322,-500.0,0.00010973,2]
[380367566,1755707432331,-500.44654968,0.00010973,2]
[380367567,1755707432341,-500.0,0.00010973,2]
[380367568,1755707432350,-163.50547101,0.00010973,2]
[380367569,1755707432359,-500.0,0.00010973,2]
[380367570,1755707432368,-500.0,0.00010973,2]
[380367571,1755707432378,-500.0,0.00010973,2]
[380367572,1755707432387,-500.0,0.00010973,2]
[380367573,1755707432396,-500.0,0.00010973,2]
[380367574,1755707432406,-500.0,0.00010973,2]
[380367575,1755707432416,-161.95748027,0.00010973,2]
[380367576,1755707432425,-500.0,0.00010973,2]
[380367577,1755707432435,-500.0,0.00010973,2]
[380367578,1755707432446,-500.0,0.00010973,2]
[380367579,1755707432455,-500.0,0.00010973,2]
[380367580,1755707432465,-500.0,0.00010973,2]
[380367582,1755707432474,-500.0,0.00010973,2]
[380367584,1755707432484,-500.0,0.00010973,2]
[380367586,1755707432493,-500.0,0.00010973,2]
[380367588,1755707432503,-502.07116757,0.00010973,2]
[380367590,1755707432513,-500.0,0.00010973,2]
[380367592,1755707432522,-257.27088932,0.00010973,2]
[380367594,1755707432532,-500.0,0.00010973,2]
[380367596,1755707432541,-500.0,0.00010973,2]
[380367598,1755707432551,-500.0,0.00010973,2]
[380367600,1755707432560,-161.94715479,0.00010973,2]
[380367602,1755707432569,-4030.01113509,0.00010986,2]
[380367604,1755707432580,-1572.98886491,0.00010986,2]
[380367607,1755707432589,-1200.18199089,0.00010986,2]
[380367613,1755707432609,-6648.81800911,0.00010986,2]
[380367615,1755707432619,-2528.72366662,0.0001099,2]
[380367617,1755707432629,-2311.53267683,0.00010991,2]
[380367618,1755707432638,-2094.34168706,0.00010992,2]
[380367619,1755707432648,-1877.15069729,0.00010993,2]
[380367620,1755707432657,-1659.95970752,0.00010994,2]
[380367621,1755707432666,-1442.76871775,0.00010995,2]
[380367622,1755707432675,-1225.57772798,0.00010996,2]
[380367623,1755707432684,-1008.38673821,0.00010998,2]
[380367624,1755707432695,-643.0,0.00010999,2]
[380367625,1755707432705,-791.19574844,0.00010999,2]
[380367626,1755707432715,-611.11017371,0.00010999,2]
[380367627,1755707432724,-164.31338392,0.00010999,2]
[380367628,1755707432733,-234.06647128,0.00010999,2]
[380367629,1755707432742,-492.65422923,0.00010999,2]
[380367630,1755707432752,-308.03212383,0.00010999,2]
[380367631,1755707432761,-500.0,0.00010999,2]
[380367632,1755707432770,-158.95723911,0.00010999,2]
[380367633,1755707432779,-281.13657079,0.00010999,2]
[380367634,1755707432789,-424.31958871,0.00010999,2]
[380367635,1755707432798,-18229.99921331,0.00011,2]
[380367636,1755707432820,-5458.73564897,0.00011,2]
[380367637,1755707432842,-6002.0344212,0.00011,2]
[380367638,1755707432853,-10032.02669624,0.00011,2]
[380367639,1755707432880,-488189.06719602,0.00011,2]
[380367742,1755707439430,-33126.78863663,0.00011,2]
[380367747,1755707439467,-1398048.55936158,0.00011,2]
[380367749,1755707439476,-1667072.64490277,0.00011,2]
[380367751,1755707439486,-151.0,0.00011,2]
[380367753,1755707439495,-196.2077178,0.00011,2]
[380367755,1755707439504,-1404360.01157687,0.00011,2]
[380367757,1755707439513,-8872.36,0.00011,2]
[380367759,1755707439522,-151.0,0.00011,2]
[380367761,1755707439531,-151.0,0.00011,2]
[380367763,1755707439541,-151.0,0.00011,2]
[380367765,1755707439551,-243.130724,0.00011,2]
[380367767,1755707439560,-243.130724,0.00011,2]
[380367769,1755707439569,-243.130724,0.00011,2]
[380367771,1755707439579,-151.0,0.00011,2]
[380367773,1755707439587,-243.130724,0.00011,2]
[380367775,1755707439596,-151.0,0.00011,2]
[380367777,1755707439606,-151.0,0.00011,2]
[380367779,1755707439615,-151.0,0.00011,2]
[380367781,1755707439625,-243.130724,0.00011,2]
[380367783,1755707439634,-151.0,0.00011,2]
[380367785,1755707439643,-243.130724,0.00011,2]
[380367787,1755707439653,-151.0,0.00011,2]
[380367789,1755707439662,-150.0,0.00011,2]
[380367791,1755707439671,-151.0,0.00011,2]
[380367793,1755707439680,-151.0,0.00011,2]
[380367795,1755707439690,-194067.2,0.00011,2]
[380367797,1755707439699,-243.130724,0.00011,2]
[380367799,1755707439709,-243.130724,0.00011,2]
[380367801,1755707439718,-151.0,0.00011,2]
[380367803,1755707439728,-151.0,0.00011,2]
[380367805,1755707439737,-151.0,0.00011,2]
[380367807,1755707439746,-151.0,0.00011,2]
[380367809,1755707439755,-151.0,0.00011,2]
[380367811,1755707439765,-240.864153,0.00011,2]
[380367813,1755707439774,-151.0,0.00011,2]
[380367815,1755707439783,-151.0,0.00011,2]
[380367817,1755707439793,-151.0,0.00011,2]
[380367819,1755707439802,-151.0,0.00011,2]
[380367821,1755707439811,-159.758689,0.00011,2]
[380367823,1755707439820,-403.32229,0.00011,2]
[380367825,1755707439830,-403.32229,0.00011,2]
[380367827,1755707439840,-151.0,0.00011,2]
[380367829,1755707439849,-151.0,0.00011,2]
[380367831,1755707439859,-151.0,0.00011,2]
[380367833,1755707439868,-151.0,0.00011,2]
[380367835,1755707439877,-403.32229,0.00011,2]
[380367837,1755707439887,-403.32229,0.00011,2]
[380367839,1755707439896,-151.0,0.00011,2]
[380367841,1755707439907,-151.0,0.00011,2]
[380367843,1755707439917,-151.0,0.00011,2]
[380367845,1755707439926,-151.0,0.00011,2]
[380367847,1755707439936,-151.0,0.00011,2]
[380367850,1755707439948,-151.0,0.00011,2]
[380367852,1755707439959,-403.32229,0.00011,2]
[380367855,1755707439969,-403.32229,0.00011,2]
[380367858,1755707439979,-151.0,0.00011,2]
[380367861,1755707439989,-174.739972,0.00011,2]
[380367864,1755707439999,-151.0,0.00011,2]
[380367867,1755707440008,-403.32229,0.00011,2]
[380367870,1755707440020,-403.32229,0.00011,2]
[380367874,1755707440029,-352.47251,0.00011,2]
[380367878,1755707440039,-352.47251,0.00011,2]
[380367881,1755707440049,-352.47251,0.00011,2]
[380367884,1755707440059,-352.47251,0.00011,2]
[380367887,1755707440068,-151.0,0.00011,2]
[380367889,1755707440078,-352.47251,0.00011,2]
[380367892,1755707440087,-151.0,0.00011,2]
[380367895,1755707440096,-352.47251,0.00011,2]
[380367898,1755707440106,-151.0,0.00011,2]
[380367901,1755707440115,-352.47251,0.00011,2]
[380367904,1755707440124,-151.0,0.00011,2]
[380367907,1755707440134,-352.47251,0.00011,2]
[380367910,1755707440143,-151.0,0.00011,2]
[380367913,1755707440153,-151.0,0.00011,2]
[380367916,1755707440163,-151.0,0.00011,2]
[380367919,1755707440172,-151.181606,0.00011,2]
[380367922,1755707440181,-151.0,0.00011,2]
[380367925,1755707440191,-151.0,0.00011,2]
[380367928,1755707440200,-443.804494,0.00011,2]
[380367931,1755707440211,-443.804494,0.00011,2]
[380367934,1755707440221,-443.804494,0.00011,2]
[380367937,1755707440230,-443.804494,0.00011,2]
[380367940,1755707440240,-443.804494,0.00011,2]
[380367943,1755707440250,-443.804494,0.00011,2]
[380367946,1755707440260,-7205.897011,0.00011,2]
[380367949,1755707440269,-7205.897011,0.00011,2]
[380367951,1755707440279,-155.125272,0.00011,2]
[380367954,1755707440288,-443.804494,0.00011,2]
[380367956,1755707440298,-155.125272,0.00011,2]
[380367959,1755707440307,-443.804494,0.00011,2]
[380367962,1755707440317,-7205.897011,0.00011,2]
[380367965,1755707440327,-7205.897011,0.00011,2]
[380367968,1755707440336,-151.0,0.00011,2]
[380367971,1755707440345,-155.125272,0.00011,2]
[380367973,1755707440355,-151.0,0.00011,2]
[380367975,1755707440365,-7205.897011,0.00011,2]
[380367977,1755707440375,-151.0,0.00011,2]
[380367979,1755707440384,-155.125272,0.00011,2]
[380367981,1755707440393,-7205.897011,0.00011,2]
[380367983,1755707440404,-151.0,0.00011,2]
[380367985,1755707440413,-151.0,0.00011,2]
[380367987,1755707440423,-548.993428,0.00011,2]
[380367989,1755707440432,-151.0,0.00011,2]
[380367991,1755707440441,-299.778001,0.00011,2]
[380367994,1755707440450,-151.0,0.00011,2]
[380367997,1755707440464,-548.993428,0.00011,2]
[380368000,1755707440474,-155.125272,0.00011,2]
[380368003,1755707440483,-299.778001,0.00011,2]
[380368006,1755707440492,-7205.897011,0.00011,2]
[380368009,1755707440501,-155.125272,0.00011,2]
[380368013,1755707440511,-7205.897011,0.00011,2]
[380368016,1755707440521,-151.0,0.00011,2]
[380368019,1755707440530,-151.0,0.00011,2]
[380368022,1755707440539,-548.993428,0.00011,2]
[380368024,1755707440549,-299.778001,0.00011,2]
[380368027,1755707440558,-548.993428,0.00011,2]
[380368029,1755707440568,-155.125272,0.00011,2]
[380368031,1755707440577,-299.778001,0.00011,2]
[380368033,1755707440586,-155.125272,0.00011,2]
[380368035,1755707440595,-158.048643,0.00011,2]
[380368037,1755707440605,-151.0,0.00011,2]
[380368039,1755707440615,-158.048643,0.00011,2]
[380368041,1755707440625,-171.822591,0.00011,2]
[380368043,1755707440635,-548.993428,0.00011,2]
[380368045,1755707440645,-299.778001,0.00011,2]
[380368047,1755707440654,-329.066521,0.00011,2]
[380368049,1755707440664,-548.993428,0.00011,2]
[380368051,1755707440674,-158.048643,0.00011,2]
[380368052,1755707440683,-299.778001,0.00011,2]
[380368053,1755707440693,-151.0,0.00011,2]
[380368054,1755707440704,-158.048643,0.00011,2]